[Event "Late-Titled-Tuesday-Blitz-September-05-2023"]
[Site "Chess.com"]
[Date "2023.09.05"]
[Round "3"]
[White "dretch"]
[Black "DawidCzerw"]
[Result "1/2-1/2"]
[WhiteElo "2865"]
[BlackElo "2505"]
[TimeControl "180+1"]
[EndTime "14:30:19 PDT"]
[Termination "Game drawn by repetition"]

1. d4 {[%clk 0:03:00.9]} 1... Nf6 {[%clk 0:02:59]} 2. c4 {[%clk 0:03:01.3]} 2...
e6 {[%clk 0:02:59.5]} 3. Nc3 {[%clk 0:03:01.9]} 3... Bb4 {[%clk 0:02:59.3]} 4.
Qc2 {[%clk 0:03:02.5]} 4... b6 {[%clk 0:02:58.4]} 5. e4 {[%clk 0:03:02.2]} 5...
Bxc3+ {[%clk 0:02:57.8]} 6. bxc3 {[%clk 0:03:02.1]} 6... d6 {[%clk 0:02:54.3]}
7. Bd3 {[%clk 0:03:01.2]} 7... e5 {[%clk 0:02:54.2]} 8. Ne2 {[%clk 0:03:01.6]}
8... O-O {[%clk 0:02:50.2]} 9. O-O {[%clk 0:03:01.6]} 9... Ne8 {[%clk
0:02:49.8]} 10. f4 {[%clk 0:03:00.8]} 10... f6 {[%clk 0:02:49.1]} 11. c5 {[%clk
0:02:53.2]} 11... bxc5 {[%clk 0:02:43.7]} 12. fxe5 {[%clk 0:02:47.8]} 12... dxe5
{[%clk 0:02:36.8]} 13. dxe5 {[%clk 0:02:46.8]} 13... Nd7 {[%clk 0:02:25.5]} 14.
Bc4+ {[%clk 0:02:10.2]} 14... Kh8 {[%clk 0:02:24.6]} 15. Bd5 {[%clk 0:02:10.3]}
15... Rb8 {[%clk 0:02:19.8]} 16. Ba3 {[%clk 0:01:58.6]} 16... Nxe5 {[%clk
0:01:45.7]} 17. Bxc5 {[%clk 0:01:57.3]} 17... Nd6 {[%clk 0:01:45.1]} 18. Bxa7
{[%clk 0:01:56.9]} 18... Rb5 {[%clk 0:01:36.9]} 19. Bd4 {[%clk 0:01:36.6]} 19...
c6 {[%clk 0:01:31.4]} 20. c4 {[%clk 0:01:22.6]} 20... Ra5 {[%clk 0:01:12.2]} 21.
Bxe5 {[%clk 0:01:19.5]} 21... cxd5 {[%clk 0:01:09.4]} 22. Bxd6 {[%clk
0:01:16.7]} 22... Qxd6 {[%clk 0:01:06.8]} 23. cxd5 {[%clk 0:01:04]} 23... Ba6
{[%clk 0:01:06.5]} 24. Rfc1 {[%clk 0:01:00.7]} 24... Bxe2 {[%clk 0:00:23.2]} 25.
Qxe2 {[%clk 0:01:00.3]} 25... Rfa8 {[%clk 0:00:23.8]} 26. Rc6 {[%clk 0:00:46.4]}
26... Qe5 {[%clk 0:00:23.7]} 27. Rac1 {[%clk 0:00:44.3]} 27... h6 {[%clk
0:00:21.2]} 28. Rc8+ {[%clk 0:00:40.5]} 28... Rxc8 {[%clk 0:00:21.2]} 29. Rxc8+
{[%clk 0:00:40.2]} 29... Kh7 {[%clk 0:00:22.1]} 30. Qc2 {[%clk 0:00:17.3]} 30...
Qa1+ {[%clk 0:00:19.4]} 31. Kf2 {[%clk 0:00:17.4]} 31... Rxa2 {[%clk 0:00:19.3]}
32. Ke3 {[%clk 0:00:11.9]} 32... Rxc2 {[%clk 0:00:17.3]} 33. Rxc2 {[%clk
0:00:12.8]} 33... Qe1+ {[%clk 0:00:17.6]} 34. Kd3 {[%clk 0:00:12.5]} 34... Qd1+
{[%clk 0:00:16.5]} 35. Rd2 {[%clk 0:00:13]} 35... Qb3+ {[%clk 0:00:16.7]} 36.
Ke2 {[%clk 0:00:13]} 36... Qb5+ {[%clk 0:00:13.8]} 37. Ke3 {[%clk 0:00:13.1]}
37... Qc5+ {[%clk 0:00:13.7]} 38. Ke2 {[%clk 0:00:12.5]} 38... Qd6 {[%clk
0:00:13.8]} 39. g3 {[%clk 0:00:12]} 39... Kg6 {[%clk 0:00:14.2]} 40. Ke3 {[%clk
0:00:11.7]} 40... f5 {[%clk 0:00:13.3]} 41. exf5+ {[%clk 0:00:11.9]} 41... Kxf5
{[%clk 0:00:14.2]} 42. Kf3 {[%clk 0:00:12.6]} 42... g5 {[%clk 0:00:10.1]} 43.
Rd1 {[%clk 0:00:09.1]} 43... g4+ {[%clk 0:00:09.5]} 44. Kf2 {[%clk 0:00:08.9]}
44... Ke4 {[%clk 0:00:07.6]} 45. Re1+ {[%clk 0:00:08.7]} 45... Kd3 {[%clk
0:00:06.6]} 46. Rd1+ {[%clk 0:00:09.5]} 46... Kc2 {[%clk 0:00:06.5]} 47. Re1
{[%clk 0:00:09.6]} 47... Qxd5 {[%clk 0:00:06.2]} 48. Kg1 {[%clk 0:00:09.8]}
48... Qf3 {[%clk 0:00:03]} 49. Rf1 {[%clk 0:00:09.8]} 49... Qe3+ {[%clk
0:00:03.2]} 50. Kg2 {[%clk 0:00:09.8]} 50... Kd2 {[%clk 0:00:03.5]} 51. Rf4
{[%clk 0:00:10.2]} 51... Ke1 {[%clk 0:00:02.1]} 52. Rxg4 {[%clk 0:00:08.8]}
52... Qe2+ {[%clk 0:00:02.3]} 53. Kh3 {[%clk 0:00:09.2]} 53... Qf1+ {[%clk
0:00:02.7]} 54. Kh4 {[%clk 0:00:09.7]} 54... Qf5 {[%clk 0:00:02.8]} 55. Rf4
{[%clk 0:00:09.1]} 55... Qg5+ {[%clk 0:00:03]} 56. Kh3 {[%clk 0:00:09.8]} 56...
Qh5+ {[%clk 0:00:03.5]} 57. Kg2 {[%clk 0:00:10.3]} 57... Qg5 {[%clk 0:00:03.5]}
58. Kg1 {[%clk 0:00:10.9]} 58... Ke2 {[%clk 0:00:03.7]} 59. Kg2 {[%clk
0:00:11.6]} 59... Ke3 {[%clk 0:00:04.3]} 60. Kg1 {[%clk 0:00:12.1]} 60... h5
{[%clk 0:00:04.9]} 61. Kg2 {[%clk 0:00:12.6]} 61... Ke2 {[%clk 0:00:05.5]} 62.
Kg1 {[%clk 0:00:13]} 62... Qd5 {[%clk 0:00:06.1]} 63. Rf2+ {[%clk 0:00:12.4]}
63... Ke1 {[%clk 0:00:06.6]} 64. Rf4 {[%clk 0:00:13.3]} 64... Ke2 {[%clk
0:00:06.4]} 65. Rf2+ {[%clk 0:00:12.7]} 65... Ke3 {[%clk 0:00:06.9]} 66. Rf4
{[%clk 0:00:12.8]} 66... Qd1+ {[%clk 0:00:07]} 67. Kg2 {[%clk 0:00:13.1]} 67...
Qe2+ {[%clk 0:00:07.5]} 68. Kg1 {[%clk 0:00:13.1]} 68... Qe1+ {[%clk 0:00:07.5]}
69. Kg2 {[%clk 0:00:13.6]} 69... Qd2+ {[%clk 0:00:07.6]} 70. Kg1 {[%clk
0:00:13.9]} 70... Qd5 {[%clk 0:00:08.1]} 71. Rf2 {[%clk 0:00:12.6]} 71... Qc5
{[%clk 0:00:07.6]} 72. Rf4 {[%clk 0:00:12.5]} 72... Qb6 {[%clk 0:00:07.3]} 73.
Kg2 {[%clk 0:00:12.5]} 73... Ke2 {[%clk 0:00:07.1]} 74. Kh3 {[%clk 0:00:08.5]}
74... Qg6 {[%clk 0:00:06.7]} 75. Kg2 {[%clk 0:00:08.4]} 75... Qg5 {[%clk
0:00:07]} 76. Kg1 {[%clk 0:00:07.9]} 76... Ke3 {[%clk 0:00:07.3]} 77. Kg2 {[%clk
0:00:08.3]} 77... Ke2 {[%clk 0:00:07.6]} 1/2-1/2

[Event "Late-Titled-Tuesday-Blitz-September-05-2023"]
[Site "Chess.com"]
[Date "2023.09.05"]
[Round "3"]
[White "vladislavkovalev"]
[Black "ridnani2021"]
[Result "1/2-1/2"]
[WhiteElo "2902"]
[BlackElo "2550"]
[TimeControl "180+1"]
[EndTime "14:30:28 PDT"]
[Termination "Game drawn by repetition"]

1. e4 {[%clk 0:02:54.4]} 1... c6 {[%clk 0:03:00]} 2. Nf3 {[%clk 0:02:54.4]} 2...
d5 {[%clk 0:02:57.8]} 3. d3 {[%clk 0:02:55]} 3... dxe4 {[%clk 0:02:55.9]} 4.
dxe4 {[%clk 0:02:55.9]} 4... Qxd1+ {[%clk 0:02:55.9]} 5. Kxd1 {[%clk 0:02:56.8]}
5... Bg4 {[%clk 0:02:53.3]} 6. Be2 {[%clk 0:02:57.3]} 6... Nd7 {[%clk 0:02:51]}
7. Ne1 {[%clk 0:02:57.6]} 7... Bxe2+ {[%clk 0:02:49.2]} 8. Kxe2 {[%clk
0:02:58.5]} 8... O-O-O {[%clk 0:02:47.7]} 9. Be3 {[%clk 0:02:57.5]} 9... g6
{[%clk 0:02:46]} 10. Nd2 {[%clk 0:02:56.9]} 10... Bg7 {[%clk 0:02:44.2]} 11. Nd3
{[%clk 0:02:57.3]} 11... Ngf6 {[%clk 0:02:41.1]} 12. f3 {[%clk 0:02:57.4]} 12...
Nb6 {[%clk 0:02:29.7]} 13. a4 {[%clk 0:02:54.6]} 13... Kb8 {[%clk 0:02:27.6]}
14. a5 {[%clk 0:02:50.3]} 14... Nbd7 {[%clk 0:02:27.3]} 15. Nc4 {[%clk
0:02:50.3]} 15... a6 {[%clk 0:02:23.5]} 16. Rhd1 {[%clk 0:02:50.5]} 16... Ne8
{[%clk 0:02:15.7]} 17. Nc5 {[%clk 0:02:16]} 17... Kc7 {[%clk 0:02:12.7]} 18.
Nxd7 {[%clk 0:01:49.6]} 18... Rxd7 {[%clk 0:02:10.8]} 19. Bf4+ {[%clk
0:01:38.3]} 19... Nd6 {[%clk 0:02:08.7]} 20. Rd3 {[%clk 0:01:25.8]} 20... Rdd8
{[%clk 0:01:49]} 21. Rad1 {[%clk 0:01:21.6]} 21... g5 {[%clk 0:01:47.9]} 22. Bg3
{[%clk 0:00:56.8]} 22... h5 {[%clk 0:01:46.7]} 23. Nxd6 {[%clk 0:00:55.3]} 23...
exd6 {[%clk 0:01:45.3]} 24. Bxd6+ {[%clk 0:00:53]} 24... Kc8 {[%clk 0:01:44.6]}
25. c3 {[%clk 0:00:50.9]} 25... Rhe8 {[%clk 0:01:42.2]} 26. Bc5 {[%clk
0:00:43.5]} 26... Rxd3 {[%clk 0:01:23.7]} 27. Kxd3 {[%clk 0:00:40.3]} 27... Rd8+
{[%clk 0:01:23.7]} 28. Kc2 {[%clk 0:00:39.3]} 28... Rxd1 {[%clk 0:01:24.6]} 29.
Kxd1 {[%clk 0:00:39.7]} 29... Be5 {[%clk 0:01:24.9]} 30. g3 {[%clk 0:00:32.9]}
30... Kd7 {[%clk 0:01:21.8]} 31. Ke2 {[%clk 0:00:31.6]} 31... Ke6 {[%clk
0:01:17.1]} 32. Be3 {[%clk 0:00:30.6]} 32... g4 {[%clk 0:01:14.5]} 33. f4 {[%clk
0:00:26.2]} 33... Bc7 {[%clk 0:01:14.3]} 34. b4 {[%clk 0:00:24.1]} 34... f6
{[%clk 0:01:09.3]} 35. f5+ {[%clk 0:00:19.8]} 35... Kf7 {[%clk 0:01:07]} 36. Kf2
{[%clk 0:00:14.4]} 36... Be5 {[%clk 0:01:05]} 37. Bd4 {[%clk 0:00:14.5]} 37...
Bb8 {[%clk 0:01:02.3]} 38. Kg2 {[%clk 0:00:14.7]} 38... Bd6 {[%clk 0:00:59.6]}
39. h3 {[%clk 0:00:13.6]} 39... Bb8 {[%clk 0:00:57.6]} 40. hxg4 {[%clk 0:00:14]}
40... hxg4 {[%clk 0:00:57.3]} 41. Kf2 {[%clk 0:00:14.7]} 41... Bc7 {[%clk
0:00:49.7]} 42. Be3 {[%clk 0:00:14.9]} 42... Be5 {[%clk 0:00:48.6]} 43. Bd4
{[%clk 0:00:12.5]} 43... Bc7 {[%clk 0:00:49]} 44. c4 {[%clk 0:00:13.1]} 44...
Ke7 {[%clk 0:00:47.1]} 45. Be3 {[%clk 0:00:12.5]} 45... Be5 {[%clk 0:00:44.9]}
46. Bd2 {[%clk 0:00:07.3]} 46... Kd7 {[%clk 0:00:35.8]} 47. Be1 {[%clk
0:00:06.4]} 47... Ke7 {[%clk 0:00:34.3]} 48. Ke2 {[%clk 0:00:07]} 48... Kd7
{[%clk 0:00:30.1]} 49. Kd3 {[%clk 0:00:07.4]} 49... Ke7 {[%clk 0:00:28.4]} 50.
Bf2 {[%clk 0:00:07.8]} 50... Kd7 {[%clk 0:00:26.4]} 51. Bd4 {[%clk 0:00:06.6]}
51... Ke7 {[%clk 0:00:25.7]} 52. Bxe5 {[%clk 0:00:03.6]} 52... fxe5 {[%clk
0:00:26.6]} 53. Kc3 {[%clk 0:00:03.7]} 53... Kf7 {[%clk 0:00:25.5]} 54. Kb3
{[%clk 0:00:03.5]} 54... Kf6 {[%clk 0:00:24.4]} 55. Ka3 {[%clk 0:00:03.7]} 55...
Kf7 {[%clk 0:00:23.3]} 56. Ka4 {[%clk 0:00:04.3]} 56... Ke7 {[%clk 0:00:21]} 57.
b5 {[%clk 0:00:03.6]} 57... c5 {[%clk 0:00:19.5]} 58. Kb3 {[%clk 0:00:03.8]}
58... Kf7 {[%clk 0:00:16.9]} 59. Kc3 {[%clk 0:00:04.3]} 59... Ke7 {[%clk
0:00:17.2]} 60. Kd3 {[%clk 0:00:05]} 60... Kf7 {[%clk 0:00:17.4]} 61. Ke3 {[%clk
0:00:05.7]} 61... Ke7 {[%clk 0:00:17.6]} 62. Ke2 {[%clk 0:00:06.4]} 62... Kf7
{[%clk 0:00:17.9]} 63. Kf2 {[%clk 0:00:06.8]} 63... Ke7 {[%clk 0:00:18.4]} 64.
Kg2 {[%clk 0:00:06]} 64... Kf7 {[%clk 0:00:18.7]} 65. Kg1 {[%clk 0:00:06.6]}
65... Ke7 {[%clk 0:00:18.9]} 66. Kf2 {[%clk 0:00:07.4]} 66... Kf7 {[%clk
0:00:19.4]} 67. Kf1 {[%clk 0:00:08.1]} 67... Ke7 {[%clk 0:00:19.6]} 68. Ke2
{[%clk 0:00:08.9]} 68... Kf7 {[%clk 0:00:20]} 69. Ke3 {[%clk 0:00:09.6]} 69...
Ke7 {[%clk 0:00:20.4]} 70. Kd3 {[%clk 0:00:10.4]} 70... Kf7 {[%clk 0:00:20.8]}
71. Kc2 {[%clk 0:00:11.1]} 71... Ke7 {[%clk 0:00:21.3]} 72. Kd2 {[%clk
0:00:11.9]} 72... Kf7 {[%clk 0:00:21.8]} 73. Kc3 {[%clk 0:00:12.7]} 73... Ke7
{[%clk 0:00:22.2]} 74. Kc2 {[%clk 0:00:13.6]} 74... Kf7 {[%clk 0:00:22.7]} 75.
Kb3 {[%clk 0:00:14.5]} 75... Ke7 {[%clk 0:00:23]} 76. bxa6 {[%clk 0:00:15.4]}
76... bxa6 {[%clk 0:00:23.2]} 77. Ka3 {[%clk 0:00:16.1]} 77... Kf7 {[%clk
0:00:23.5]} 78. Ka2 {[%clk 0:00:17]} 78... Ke7 {[%clk 0:00:24]} 79. Kb2 {[%clk
0:00:17.9]} 79... Kf7 {[%clk 0:00:24.6]} 80. Kb3 {[%clk 0:00:18.8]} 80... Ke7
{[%clk 0:00:25.2]} 81. Kc3 {[%clk 0:00:19.7]} 81... Kf7 {[%clk 0:00:25.7]} 82.
Kc2 {[%clk 0:00:20.6]} 82... Ke7 {[%clk 0:00:26.2]} 83. Kd3 {[%clk 0:00:21.5]}
83... Kf7 {[%clk 0:00:26.7]} 84. Kd2 {[%clk 0:00:22.4]} 84... Ke7 {[%clk
0:00:27.2]} 85. Ke3 {[%clk 0:00:23.3]} 85... Kf7 {[%clk 0:00:27.8]} 86. Ke2
{[%clk 0:00:24.2]} 86... Ke7 {[%clk 0:00:28.3]} 87. Kf2 {[%clk 0:00:25.1]} 87...
Kf7 {[%clk 0:00:28.9]} 88. Kg2 {[%clk 0:00:26]} 88... Ke7 {[%clk 0:00:29.4]} 89.
Kh2 {[%clk 0:00:26.9]} 89... Kf7 {[%clk 0:00:29.9]} 90. Kh1 {[%clk 0:00:27.8]}
90... Ke7 {[%clk 0:00:30.3]} 91. Kg1 {[%clk 0:00:28.7]} 91... Kf7 {[%clk
0:00:30.7]} 92. Kf1 {[%clk 0:00:29.6]} 92... Ke7 {[%clk 0:00:31.2]} 93. Ke1
{[%clk 0:00:30.5]} 93... Kf7 {[%clk 0:00:31.7]} 94. Kd1 {[%clk 0:00:31.4]} 94...
Ke7 {[%clk 0:00:32.2]} 95. Kc1 {[%clk 0:00:32.3]} 95... Kf7 {[%clk 0:00:32.8]}
96. Kb1 {[%clk 0:00:33.2]} 96... Ke7 {[%clk 0:00:33.3]} 97. Ka1 {[%clk
0:00:34.1]} 97... Kf7 {[%clk 0:00:33.8]} 98. Ka2 {[%clk 0:00:35]} 98... Ke7
{[%clk 0:00:34.3]} 99. Kb2 {[%clk 0:00:35.9]} 99... Kf7 {[%clk 0:00:34.8]} 100.
Kc2 {[%clk 0:00:36.8]} 100... Ke7 {[%clk 0:00:35.4]} 101. Kd2 {[%clk 0:00:37.7]}
101... Kf7 {[%clk 0:00:36]} 102. Ke2 {[%clk 0:00:38.6]} 102... Ke7 {[%clk
0:00:36.5]} 103. Kf2 {[%clk 0:00:39.5]} 103... Kf7 {[%clk 0:00:37]} 104. Kg2
{[%clk 0:00:40.4]} 104... Ke7 {[%clk 0:00:37.5]} 105. Kh2 {[%clk 0:00:41.3]}
105... Kf7 {[%clk 0:00:38]} 106. Kh1 {[%clk 0:00:42.2]} 106... Ke7 {[%clk
0:00:38.5]} 107. Kg1 {[%clk 0:00:43.1]} 107... Kf7 {[%clk 0:00:39.1]} 108. Kf1
{[%clk 0:00:44]} 108... Ke7 {[%clk 0:00:38.9]} 109. Ke1 {[%clk 0:00:44.9]}
109... Kf7 {[%clk 0:00:39.5]} 110. Kd1 {[%clk 0:00:45.8]} 110... Ke7 {[%clk
0:00:40.2]} 111. Kc1 {[%clk 0:00:46.7]} 111... Kf7 {[%clk 0:00:37.8]} 112. Kb1
{[%clk 0:00:47.6]} 112... Ke7 {[%clk 0:00:37.8]} 113. Ka1 {[%clk 0:00:48.5]}
113... Kf7 {[%clk 0:00:38.4]} 114. f6 {[%clk 0:00:49.4]} 114... Kxf6 {[%clk
0:00:38.7]} 115. Ka2 {[%clk 0:00:50.3]} 115... Ke6 {[%clk 0:00:39.1]} 116. Ka1
{[%clk 0:00:51.2]} 116... Kd6 {[%clk 0:00:39.6]} 117. Ka2 {[%clk 0:00:52.1]}
117... Ke6 {[%clk 0:00:40.3]} 118. Ka1 {[%clk 0:00:53]} 118... Kd6 {[%clk
0:00:41]} 119. Ka2 {[%clk 0:00:53.9]} 119... Ke6 {[%clk 0:00:41.7]} 1/2-1/2

[Event "Late-Titled-Tuesday-Blitz-September-05-2023"]
[Site "Chess.com"]
[Date "2023.09.05"]
[Round "3"]
[White "ilya2700"]
[Black "Valio_M1948"]
[Result "0-1"]
[WhiteElo "2243"]
[BlackElo "2516"]
[TimeControl "180+1"]
[EndTime "14:30:43 PDT"]
[Termination "Valio_M1948 won by resignation"]

1. e4 {[%clk 0:02:55.7]} 1... e5 {[%clk 0:03:00.5]} 2. Nf3 {[%clk 0:02:54.8]}
2... d5 {[%clk 0:03:01.2]} 3. Nxe5 {[%clk 0:02:53.5]} 3... Bd6 {[%clk
0:03:00.8]} 4. d4 {[%clk 0:02:50.4]} 4... dxe4 {[%clk 0:03:00.2]} 5. Bc4 {[%clk
0:02:51.2]} 5... Bxe5 {[%clk 0:03:00.7]} 6. Qh5 {[%clk 0:02:50.5]} 6... Qe7
{[%clk 0:03:00.2]} 7. Qxe5 {[%clk 0:02:49.7]} 7... Qxe5 {[%clk 0:02:54.5]} 8.
dxe5 {[%clk 0:02:50.6]} 8... Nc6 {[%clk 0:02:54.3]} 9. Bf4 {[%clk 0:02:48.4]}
9... Nge7 {[%clk 0:02:52.1]} 10. Nc3 {[%clk 0:02:33.2]} 10... Ng6 {[%clk
0:02:51.8]} 11. Bg3 {[%clk 0:02:29.7]} 11... Ncxe5 {[%clk 0:02:49.3]} 12. Bb3
{[%clk 0:02:15.8]} 12... Bf5 {[%clk 0:02:16.8]} 13. O-O-O {[%clk 0:02:11.4]}
13... O-O {[%clk 0:02:07.3]} 14. Rd5 {[%clk 0:02:04.6]} 14... Rfe8 {[%clk
0:01:59.3]} 15. h4 {[%clk 0:01:46]} 15... c6 {[%clk 0:01:41.8]} 16. Rd6 {[%clk
0:01:41.1]} 16... h5 {[%clk 0:01:35.4]} 17. Rhd1 {[%clk 0:01:20.9]} 17... Kf8
{[%clk 0:01:35.1]} 18. R1d4 {[%clk 0:01:18.5]} 18... Ng4 {[%clk 0:01:25.2]} 19.
f3 {[%clk 0:01:11.6]} 19... exf3 {[%clk 0:01:23.4]} 20. gxf3 {[%clk 0:01:12.5]}
20... N4e5 {[%clk 0:01:16.2]} 21. Rb4 {[%clk 0:00:50.7]} 21... Re7 {[%clk
0:00:59.8]} 22. Ne4 {[%clk 0:00:42.8]} 22... Nxf3 {[%clk 0:00:48.5]} 23. Ng5
{[%clk 0:00:42.2]} 23... Nfe5 {[%clk 0:00:45.3]} 24. Rbd4 {[%clk 0:00:31.1]}
24... Rae8 {[%clk 0:00:39.2]} 25. Rd8 {[%clk 0:00:29.7]} 25... Rxd8 {[%clk
0:00:31.4]} 26. Rxd8+ {[%clk 0:00:27.9]} 26... Re8 {[%clk 0:00:32.1]} 27. Rxe8+
{[%clk 0:00:09.2]} 27... Kxe8 {[%clk 0:00:32.2]} 28. Kd2 {[%clk 0:00:10]} 28...
Ke7 {[%clk 0:00:29.1]} 29. Ke3 {[%clk 0:00:10]} 29... f6 {[%clk 0:00:27.8]} 30.
Ne4 {[%clk 0:00:08.2]} 30... b6 {[%clk 0:00:18.5]} 31. Nf2 {[%clk 0:00:05.6]}
31... Be6 {[%clk 0:00:17.9]} 32. Kd4 {[%clk 0:00:05.6]} 32... Bxb3 {[%clk
0:00:16.7]} 33. axb3 {[%clk 0:00:06.5]} 33... Nf3+ {[%clk 0:00:16.7]} 34. Kc4
{[%clk 0:00:05.8]} 34... Nfxh4 {[%clk 0:00:15.7]} 35. Ne4 {[%clk 0:00:05.8]}
35... Nf5 {[%clk 0:00:15]} 36. Bh2 {[%clk 0:00:04.4]} 36... Ne5+ {[%clk
0:00:15.4]} 37. Kc3 {[%clk 0:00:04]} 37... h4 {[%clk 0:00:15.2]} 38. b4 {[%clk
0:00:04.4]} 38... g5 {[%clk 0:00:13.7]} 39. Nf2 {[%clk 0:00:04.3]} 39... Nf3
{[%clk 0:00:13.7]} 40. Bb8 {[%clk 0:00:03.7]} 40... a6 {[%clk 0:00:13.1]} 41.
Bc7 {[%clk 0:00:03.4]} 41... b5 {[%clk 0:00:12.9]} 42. Kd3 {[%clk 0:00:04]}
42... h3 {[%clk 0:00:12.5]} 43. Nxh3 {[%clk 0:00:04]} 43... g4 {[%clk
0:00:10.4]} 44. Nf2 {[%clk 0:00:03.5]} 44... g3 {[%clk 0:00:10]} 45. Nh3 {[%clk
0:00:03.8]} 45... g2 {[%clk 0:00:09.3]} 46. Ke4 {[%clk 0:00:04.5]} 46... g1=Q
{[%clk 0:00:09]} 47. Nxg1 {[%clk 0:00:04.8]} 47... Nxg1 {[%clk 0:00:09.9]} 48.
Kxf5 {[%clk 0:00:05.5]} 48... Nf3 {[%clk 0:00:10.3]} 49. Bg3 {[%clk 0:00:04.6]}
49... Nd4+ {[%clk 0:00:10.5]} 50. Ke4 {[%clk 0:00:05.4]} 50... Nxc2 {[%clk
0:00:11.4]} 51. Bf2 {[%clk 0:00:04.4]} 51... Ke6 {[%clk 0:00:09.2]} 52. Bc5
{[%clk 0:00:04.6]} 52... Na1 {[%clk 0:00:05.4]} 53. Kf4 {[%clk 0:00:03.3]} 53...
Nb3 {[%clk 0:00:05.7]} 54. Bf8 {[%clk 0:00:03.4]} 54... Kd5 {[%clk 0:00:04.8]}
55. Kf5 {[%clk 0:00:03.2]} 55... Kc4 {[%clk 0:00:04.5]} 56. Kxf6 {[%clk
0:00:04.1]} 56... Nd4 {[%clk 0:00:04.6]} 57. Ke5 {[%clk 0:00:02.9]} 57... Nc2
{[%clk 0:00:04.9]} 58. Kd6 {[%clk 0:00:02.7]} 58... Nxb4 {[%clk 0:00:05.4]} 59.
Kc7 {[%clk 0:00:02.5]} 59... c5 {[%clk 0:00:06.1]} 60. Kb7 {[%clk 0:00:02.4]}
60... Nd3 {[%clk 0:00:06.2]} 61. Kxa6 {[%clk 0:00:02.5]} 61... Nxb2 {[%clk
0:00:06.6]} 62. Kb6 {[%clk 0:00:02.9]} 62... Nd3 {[%clk 0:00:07.5]} 63. Ka5
{[%clk 0:00:02.8]} 63... b4 {[%clk 0:00:07.5]} 64. Ka4 {[%clk 0:00:03.7]} 64...
Kc3 {[%clk 0:00:06.5]} 65. Bg7+ {[%clk 0:00:03.9]} 65... Kc2 {[%clk 0:00:04.9]}
66. Kb5 {[%clk 0:00:04.1]} 66... b3 {[%clk 0:00:04.2]} 67. Kc4 {[%clk
0:00:04.9]} 67... b2 {[%clk 0:00:03.9]} 68. Bxb2 {[%clk 0:00:05]} 68... Kxb2
{[%clk 0:00:04.8]} 69. Kxd3 {[%clk 0:00:05.6]} 69... Kb3 {[%clk 0:00:05.5]} 70.
Kd2 {[%clk 0:00:06.2]} 70... c4 {[%clk 0:00:06.2]} 71. Kc1 {[%clk 0:00:07.1]}
71... Kc3 {[%clk 0:00:06.9]} 0-1